bitfinex-derivatives/quotes_BTCF0:USTF0_20250208
["timestamp","ask_amount","ask_price","bid_price","bid_amount"]
[1738974410309,0.0329,96777.0,96776.0,0.19612161]
[1738974411806,0.0329,96777.0,96776.0,0.19512161]
[1738974412008,0.0349,96777.0,96776.0,0.19712161]
[1738974413208,0.0349,96777.0,96776.0,0.18625928]
[1738974413410,0.04855687,96777.0,96776.0,0.18625928]
[1738974414605,0.08205687,96777.0,96776.0,0.18625928]
[1738974416309,0.08205687,96777.0,96776.0,0.13625928]
[1738974416609,0.08205687,96777.0,96772.0,0.00015502]
[1738974416813,0.2066176,96773.0,96772.0,0.00015502]
[1738974417419,0.08205687,96777.0,96772.0,0.00015502]
[1738974417420,0.002,96777.0,96772.0,0.36095502]
[1738974417611,0.001,96777.0,96776.0,0.3608]
[1738974418010,0.01399071,96784.0,96776.0,0.5674096]
[1738974418309,0.00015502,96791.0,96783.0,0.3608]
[1738974418509,0.00015502,96791.0,96784.0,0.04198062]
[1738974418709,0.00015502,96791.0,96785.0,0.04198062]
[1738974418907,0.00015502,96791.0,96786.0,0.04198062]
[1738974419101,0.00015502,96791.0,96787.0,0.07428062]
[1738974419306,0.00015502,96791.0,96788.0,0.04198062]
[1738974419511,0.00115502,96791.0,96789.0,0.04198062]
[1738974419712,0.00115502,96791.0,96790.0,0.04198062]
[1738974420611,0.00315502,96791.0,96790.0,0.01614639]
[1738974421001,0.00287893,96791.0,96790.0,0.01614639]
[1738974421206,0.003,96791.0,96790.0,0.01614639]
[1738974421407,0.003,96791.0,96788.0,0.001]
[1738974421608,0.003,96791.0,96789.0,0.01614751]
[1738974421809,0.003,96791.0,96790.0,0.01714761]
[1738974422108,0.003,96791.0,96790.0,0.001]
[1738974422509,0.002,96791.0,96790.0,0.002]
[1738974422910,0.002,96791.0,96790.0,0.47275805]
[1738974423713,0.08401303,96800.0,96790.0,0.47275805]
[1738974423919,0.12912,96802.0,96790.0,0.47275805]
[1738974424117,0.3608,96824.0,96791.0,0.01614864]
[1738974424318,0.01402465,96812.0,96800.0,0.48408544]
[1738974424617,0.12952,96815.0,96801.0,0.01614864]
[1738974424923,0.14307231,96815.0,96802.0,0.01608654]
[1738974425115,0.14307231,96815.0,96802.0,0.01614645]
[1738974425617,0.14307231,96815.0,96800.0,0.3618]
[1738974426317,0.14307231,96815.0,96802.0,0.001]
[1738974426516,0.14307231,96815.0,96802.0,0.002]
[1738974427114,0.14307231,96815.0,96808.0,0.3608]
[1738974428411,0.14307231,96815.0,96808.0,0.3618]
[1738974429316,0.14307231,96815.0,96810.0,0.30679732]
[1738974430926,0.14307231,96815.0,96810.0,0.30779732]
[1738974432221,0.01355231,96815.0,96810.0,0.001]
[1738974432417,0.15678544,96830.0,96811.0,0.0327]
[1738974432621,0.15678544,96830.0,96819.0,0.3608]
[1738974432622,0.12608,96829.0,96819.0,0.3608]
[1738974432924,0.12592,96828.0,96819.0,0.3608]
[1738974433317,0.12564,96827.0,96819.0,0.3608]
[1738974434115,0.37743117,96830.0,96814.0,0.00015494]
[1738974434317,0.12524,96829.0,96819.0,0.001]
[1738974434518,0.2065002,96828.0,96819.0,0.001]
[1738974435027,0.2065002,96828.0,96819.0,0.002]
[1738974435420,0.2065002,96828.0,96819.0,0.3628]
[1738974435624,0.2065002,96828.0,96819.0,0.002]
[1738974435820,0.12524,96829.0,96819.0,0.001]
[1738974436022,0.12524,96829.0,96819.0,0.002]
[1738974436216,0.2065098,96824.0,96819.0,0.002]
[1738974436421,0.2065098,96824.0,96819.0,0.001]
[1738974436621,0.2065098,96824.0,96819.0,0.002]
[1738974437928,0.3608,96850.0,96823.0,0.3608]
[1738974438123,0.3608,96850.0,96840.0,0.12328544]
[1738974438427,0.3608,96850.0,96823.0,0.3608]
[1738974438428,0.2064745,96841.0,96827.0,0.00015494]
[1738974439319,0.12416,96840.0,96827.0,0.00015494]
[1738974440218,0.12328544,96840.0,96827.0,0.00015494]
[1738974440419,0.12372,96839.0,96827.0,0.00015494]
[1738974440627,0.12372,96839.0,96827.0,0.00115494]
[1738974442029,0.12372,96839.0,96827.0,0.00215494]
[1738974442526,0.13729513,96839.0,96827.0,0.00215494]
[1738974442722,0.01357513,96839.0,96829.0,0.206496]
[1738974442928,0.1228,96840.0,96829.0,0.206496]
[1738974443126,0.12328544,96840.0,96829.0,0.206496]
[1738974443326,0.2064769,96839.0,96828.0,0.01614026]
[1738974443631,0.2064769,96839.0,96827.0,0.00215494]
[1738974444333,0.2064769,96839.0,96828.0,0.30679732]
[1738974444835,0.2064847,96836.0,96828.0,0.30679732]
[1738974445130,0.2064847,96836.0,96829.0,0.001]
[1738974445529,0.2064847,96836.0,96828.0,0.30679732]
[1738974445530,0.2064847,96836.0,96828.0,0.30779732]
[1738974445833,0.3608,96850.0,96829.0,0.001]
[1738974446133,0.2064592,96848.0,96831.0,0.3608]
[1738974447026,0.2064592,96848.0,96839.0,0.3608]
[1738974447624,0.12152,96849.0,96839.0,0.3608]
[1738974447836,0.206461,96847.0,96839.0,0.3608]
[1738974448625,0.206463,96846.0,96839.0,0.001]
[1738974448940,0.01397177,96850.0,96841.0,0.3608]
[1738974449148,0.0331,96856.0,96841.0,0.3608]
[1738974449149,0.0331,96856.0,96849.0,0.3608]
[1738974449342,0.0331,96856.0,96841.0,0.3608]
[1738974449528,0.0331,96856.0,96849.0,0.3608]
[1738974449728,0.0331,96856.0,96850.0,0.01613757]
[1738974450035,0.0331,96856.0,96851.0,0.01613757]
[1738974450340,0.04669943,96856.0,96852.0,0.01613757]
[1738974450640,0.04669943,96856.0,96853.0,0.01613757]
[1738974450932,0.04669943,96856.0,96854.0,0.01613757]
[1738974451122,0.04669943,96856.0,96855.0,0.01613757]
[1738974452638,0.04669943,96856.0,96855.0,0.01713757]
[1738974453938,0.01359943,96856.0,96855.0,0.04295761]
[1738974454139,0.13068,96868.0,96855.0,0.04295761]
[1738974454326,0.0689,96869.0,96856.0,0.04195649]
[1738974454529,0.0689,96869.0,96861.0,0.3608]
[1738974454530,0.08597447,96869.0,96861.0,0.3608]
[1738974454730,0.08597447,96869.0,96862.0,0.07422816]
[1738974454940,0.08597447,96869.0,96863.0,0.07422816]
[1738974455233,0.08597447,96869.0,96864.0,0.07422816]
[1738974455437,0.08597447,96869.0,96865.0,0.07422816]
[1738974455736,0.08597447,96869.0,96859.0,0.3608]
[1738974455737,0.08597447,96869.0,96866.0,0.07422816]
[1738974455945,0.44677447,96869.0,96867.0,0.07422816]
[1738974456242,0.44677447,96869.0,96868.0,0.07422816]
[1738974456430,0.44677447,96869.0,96868.0,0.02422816]
[1738974456630,0.44677447,96869.0,96868.0,0.01613679]
[1738974456830,0.44677447,96869.0,96865.0,0.001]
[1738974457037,0.44677447,96869.0,96866.0,0.001]
[1738974457433,0.08597447,96869.0,96866.0,0.001]
[1738974458535,0.08597447,96869.0,96867.0,0.47183951]
[1738974458837,0.26149305,96873.0,96867.0,0.47283951]
[1738974459046,0.26149305,96873.0,96868.0,0.001]
[1738974459848,0.26149305,96873.0,96867.0,0.47435951]
[1738974460143,0.26149305,96873.0,96867.0,0.47283951]
[1738974460341,0.12328544,96877.0,96867.0,0.47283951]
[1738974460547,0.12328544,96877.0,96874.0,0.3608]
[1738974460738,0.13504,96880.0,96874.0,0.3608]
[1738974461038,0.15264871,96880.0,96874.0,0.3608]
[1738974461941,0.1011,96879.0,96874.0,0.3608]
[1738974462651,0.1011,96879.0,96874.0,0.3618]
[1738974462943,0.1011,96879.0,96874.0,0.3628]
[1738974463937,0.1011,96879.0,96874.0,0.3128]
[1738974464158,0.1011,96879.0,96874.0,0.002]
[1738974464842,0.2063992,96876.0,96869.0,0.30557919]
[1738974465038,0.2064035,96874.0,96869.0,0.30557919]
[1738974465942,0.2064035,96874.0,96869.0,0.30757919]
[1738974466638,0.2064035,96874.0,96869.0,0.30657919]
[1738974466839,0.3608,96878.0,96869.0,0.30757919]
[1738974467045,0.206409,96871.0,96869.0,0.25757919]
[1738974468138,0.1322,96909.0,96874.0,0.2064017]
[1738974468346,0.2063305,96908.0,96894.0,0.3608]
[1738974468556,0.11761803,96900.0,96894.0,0.3608]
[1738974469440,0.1316,96899.0,96894.0,0.3628]
[1738974469941,0.1316,96899.0,96895.0,0.0345]
[1738974471539,0.2063175,96914.0,96895.0,0.0345]
[1738974471742,0.2062981,96923.0,96905.0,0.3608]
[1738974471940,0.13036,96919.0,96905.0,0.3608]
[1738974472939,0.12328544,96920.0,96905.0,0.3608]
[1738974473140,0.1298,96917.0,96905.0,0.3608]
[1738974474249,0.2063131,96916.0,96905.0,0.3608]
[1738974474446,0.2772131,96916.0,96905.0,0.3618]
[1738974474746,0.2063216,96912.0,96905.0,0.3618]
[1738974475046,0.2063489,96899.0,96898.0,0.36670259]
[1738974475349,0.2063532,96897.0,96895.0,0.00144]
[1738974475548,0.2063532,96897.0,96882.0,0.3608]
[1738974475549,0.0341,96896.0,96882.0,0.3608]
[1738974476249,0.12328544,96892.0,96882.0,0.3608]
[1738974476451,0.0354,96895.0,96882.0,0.3608]
[1738974476654,0.32964954,96892.0,96882.0,0.3608]
[1738974477149,0.2063775,96886.0,96882.0,0.3608]
[1738974477443,0.206388,96881.0,96879.0,0.00015486]
[1738974479040,0.208388,96881.0,96879.0,0.00015486]
[1738974479447,0.208388,96881.0,96862.0,0.55632252]
[1738974479448,0.2064043,96873.0,96862.0,0.55632252]
[1738974479646,0.2064172,96867.0,96862.0,0.55488252]
[1738974479849,0.12768,96866.0,96862.0,0.55488252]
[1738974480654,0.2064243,96864.0,96856.0,0.43403874]
[1738974481738,0.2064384,96857.0,96856.0,0.39433251]
[1738974481947,0.3608,96857.0,96846.0,0.39285251]
[1738974482143,0.5672597,96847.0,96846.0,0.35480737]
[1738974482357,0.8672597,96847.0,96846.0,0.27219737]
[1738974482652,0.8672597,96847.0,96846.0,0.24689737]
[1738974482863,0.8672597,96847.0,96843.0,0.5798044]
[1738974482864,0.2064661,96844.0,96843.0,0.5798044]
[1738974483046,0.2064661,96844.0,96843.0,0.5787644]
[1738974483652,0.5064661,96844.0,96843.0,0.5787644]
[1738974483851,0.8672661,96844.0,96843.0,0.5787644]
[1738974484360,0.5672661,96844.0,96843.0,0.5787644]
[1738974484863,0.6608,96844.0,96839.0,0.16215063]
[1738974485051,0.2064746,96840.0,96839.0,0.16103063]
[1738974485359,0.2064789,96838.0,96837.0,0.65940823]
[1738974485750,0.5064789,96838.0,96837.0,0.65940823]
[1738974485946,0.3,96838.0,96835.0,0.00015486]
[1738974486165,0.5672831,96836.0,96835.0,0.00015486]
[1738974486551,0.8672831,96836.0,96835.0,0.00015486]
[1738974487960,0.8672831,96836.0,96821.0,0.24453856]
[1738974488164,0.5682831,96836.0,96835.0,0.002]
[1738974488362,0.9290831,96836.0,96835.0,0.002]
[1738974488558,0.206513,96822.0,96821.0,0.24097342]
[1738974488864,1.330913,96822.0,96821.0,0.21267086]
[1738974489062,1.630913,96822.0,96821.0,0.21267086]
[1738974489249,0.2065407,96809.0,96808.0,0.24192504]
[1738974489455,0.6910207,96809.0,96808.0,0.24192504]
[1738974490355,0.48448,96809.0,96792.0,0.0682]
[1738974490563,0.2065471,96807.0,96799.0,0.00015495]
[1738974491268,0.48448,96809.0,96799.0,0.00015495]
[1738974491459,0.48448,96809.0,96808.0,0.001]
[1738974491460,0.6930207,96809.0,96808.0,0.001]
[1738974491762,0.6924207,96809.0,96808.0,0.001]
[1738974491967,0.3316207,96809.0,96808.0,0.001]
[1738974492362,0.002,96809.0,96808.0,0.001]
[1738974492563,0.003,96807.0,96802.0,0.3608]
[1738974493854,0.003,96807.0,96800.0,0.1]
[1738974494669,0.129,96809.0,96808.0,0.001]
[1738974494971,0.131,96809.0,96808.0,0.001]
[1738974495172,0.206552,96804.0,96800.0,0.1]
[1738974495360,0.5673578,96801.0,96800.0,0.1]
[1738974495959,0.6608,96801.0,96772.0,0.0352]
[1738974496165,0.2066261,96770.0,96754.0,0.3608]
[1738974496369,0.12328544,96764.0,96755.0,0.0698]
[1738974498275,0.12328544,96764.0,96755.0,0.0728]
[1738974498774,0.12328544,96764.0,96755.0,0.0758]
[1738974501970,0.12179495,96769.0,96755.0,0.0758]
[1738974501971,0.12039495,96769.0,96755.0,0.0758]
[1738974502175,0.12039495,96769.0,96766.0,0.2066306]
[1738974502675,0.12039495,96769.0,96762.0,0.3608]
[1738974504674,0.12012,96768.0,96762.0,0.3608]
[1738974506169,0.12112,96768.0,96762.0,0.3608]
[1738974507675,0.12012,96768.0,96762.0,0.3608]
[1738974507874,0.12312,96768.0,96762.0,0.3608]
[1738974508573,0.12212,96768.0,96762.0,0.3608]
[1738974510475,0.12312,96768.0,96762.0,0.3608]
[1738974510687,0.12412,96768.0,96762.0,0.3608]
[1738974511174,0.12012,96768.0,96762.0,0.3608]
[1738974511372,0.12412,96768.0,96762.0,0.3608]
[1738974511974,0.12512,96768.0,96762.0,0.3608]
[1738974512174,0.12212,96768.0,96762.0,0.3618]
[1738974512877,0.12212,96768.0,96767.0,0.2066304]
[1738974512878,0.002,96768.0,96767.0,0.2066304]
[1738974513077,0.11932,96768.0,96762.0,0.3618]
[1738974513480,0.002,96768.0,96762.0,0.3618]
[1738974513673,0.11732,96767.0,96762.0,0.3608]
[1738974515181,0.11932,96767.0,96762.0,0.3608]
[1738974515381,0.12432,96767.0,96762.0,0.3608]
[1738974516178,0.2066379,96764.0,96762.0,0.3608]
[1738974516672,0.12232,96767.0,96756.0,0.30356779]
[1738974516882,0.12032,96767.0,96756.0,0.30356779]
[1738974517084,0.12432,96767.0,96756.0,0.30356779]
[1738974517377,0.206649,96759.0,96756.0,0.30356779]
[1738974518476,0.48408544,96766.0,96756.0,0.30356779]
[1738974518675,0.002,96759.0,96757.0,0.30356779]
[1738974519387,0.14569392,96765.0,96757.0,0.30356779]
[1738974519581,0.32991844,96766.0,96757.0,0.30356779]
[1738974520083,0.001,96759.0,96757.0,0.30356779]
[1738974520269,0.00015495,96769.0,96758.0,0.3608]
[1738974520473,0.11504,96790.0,96777.0,0.2066074]
[1738974520689,0.11504,96790.0,96768.0,0.3608]
[1738974520690,0.2065671,96797.0,96789.0,0.3608]
[1738974520873,0.3216095,96796.0,96789.0,0.3608]
[1738974521480,0.11464,96795.0,96789.0,0.3608]
[1738974521984,0.11464,96795.0,96789.0,0.3618]
[1738974522982,0.2065695,96796.0,96789.0,0.3618]
[1738974523183,0.11396,96795.0,96789.0,0.3618]
[1738974523375,0.11596,96795.0,96789.0,0.3608]
[1738974524175,0.11396,96795.0,96789.0,0.3608]
[1738974524788,0.11696,96795.0,96789.0,0.3608]
[1738974524976,0.11896,96795.0,96789.0,0.3608]
[1738974526175,0.00015503,96802.0,96794.0,0.3608]
[1738974526375,0.15353343,96826.0,96820.0,0.2065152]
[1738974526679,0.15353343,96826.0,96825.0,0.3608]
[1738974527083,0.15353343,96826.0,96825.0,0.44699178]
[1738974527584,0.15653343,96826.0,96825.0,0.44699178]
[1738974527987,0.15353343,96826.0,96825.0,0.4631329]
[1738974528183,0.15353343,96826.0,96825.0,0.4701329]
[1738974528687,0.15353343,96826.0,96825.0,0.45724112]
[1738974528877,0.11504,96834.0,96826.0,0.2065045]
[1738974529078,0.11504,96834.0,96833.0,0.3608]
[1738974532782,0.11604,96834.0,96833.0,0.3608]
[1738974533477,0.11704,96834.0,96833.0,0.3608]
[1738974540494,0.002,96834.0,96833.0,0.3608]
[1738974540796,0.11244,96834.0,96833.0,0.3608]
[1738974540984,0.002,96834.0,96833.0,0.3608]
[1738974541791,0.11036,96849.0,96846.0,0.2064604]
[1738974541986,0.1104,96851.0,96848.0,0.3608]
[1738974542297,0.11028,96852.0,96848.0,0.9280564]
[1738974543085,0.001,96849.0,96848.0,0.7216]
[1738974543288,0.001,96849.0,96848.0,0.3608]
[1738974544497,0.001,96849.0,96848.0,0.3618]
[1738974544802,0.11028,96852.0,96848.0,0.3628]
[1738974548398,0.2064554,96849.0,96848.0,0.3628]
[1738974548801,0.0516129,96851.0,96828.0,0.3608]
[1738974548991,0.2064981,96829.0,96828.0,0.3608]
[1738974549192,0.3146581,96829.0,96828.0,0.3608]
[1738974549395,0.2064981,96829.0,96828.0,0.3608]
[1738974549595,0.3145381,96829.0,96828.0,0.3608]
[1738974553599,0.3145381,96829.0,96819.0,0.00015494]
[1738974553600,0.10804,96829.0,96819.0,0.00015494]
[1738974553893,0.2065171,96820.0,96819.0,0.00015494]
[1738974554895,0.2065171,96820.0,96819.0,0.00415494]
[1738974555499,0.2065255,96817.0,96805.0,0.3608]
[1738974555990,0.12328544,96820.0,96805.0,0.3608]
[1738974556194,0.2065288,96815.0,96805.0,0.3608]
[1738974556603,0.2065463,96807.0,96805.0,0.3608]
[1738974556792,0.10592,96806.0,96805.0,0.3608]
[1738974556986,0.14362,96806.0,96800.0,0.00015494]
[1738974557192,0.2065577,96801.0,96800.0,0.00015494]
[1738974560203,0.2125577,96801.0,96800.0,0.00115494]
[1738974560410,0.2215577,96801.0,96800.0,0.00215494]
[1738974562909,0.3256377,96801.0,96800.0,0.00215494]
[1738974572918,0.2065938,96784.0,96783.0,0.3608]
[1738974574212,0.2075938,96784.0,96783.0,0.3608]
[1738974575314,0.2075938,96784.0,96774.0,0.00010407]
[1738974575315,0.001,96784.0,96774.0,0.00010407]
[1738974575518,0.2066002,96781.0,96774.0,0.00010407]
[1738974576008,0.2066096,96777.0,96774.0,0.00010407]
[1738974577316,0.10248,96781.0,96774.0,0.00610407]
[1738974579315,0.10248,96781.0,96774.0,0.00310407]
[1738974579520,0.10248,96781.0,96774.0,0.00610407]
[1738974579829,0.10248,96781.0,96774.0,0.00310407]
[1738974580025,0.10248,96781.0,96774.0,0.00610407]
[1738974581528,0.2066063,96779.0,96774.0,0.00610407]
[1738974582131,0.2066079,96778.0,96774.0,0.00610407]
[1738974582328,0.2066097,96777.0,96774.0,0.00610407]
[1738974583526,0.2066097,96777.0,96774.0,0.00310407]
[1738974583725,0.2066097,96777.0,96774.0,0.00610407]
[1738974584127,0.10088,96776.0,96774.0,0.00610407]
[1738974585125,0.10088,96776.0,96774.0,0.00310407]
[1738974585326,0.10088,96776.0,96774.0,0.00610407]
[1738974585927,0.1006,96775.0,96774.0,0.00610407]
[1738974586633,0.10048,96775.0,96774.0,0.00610407]
[1738974586935,0.10048,96775.0,96774.0,0.00310407]
[1738974587137,0.10048,96775.0,96774.0,0.00610407]
[1738974587322,0.10048,96775.0,96774.0,0.00310407]
[1738974587526,0.10048,96775.0,96774.0,0.00610407]
[1738974589341,0.13688,96775.0,96774.0,0.00610407]
[1738974590430,0.13688,96775.0,96765.0,0.18466724]
[1738974590937,0.2066316,96767.0,96765.0,0.18466724]
[1738974592634,0.2066316,96767.0,96765.0,0.19766724]
[1738974593032,0.2066407,96762.0,96761.0,0.3608]
[1738974594437,0.2086407,96762.0,96761.0,0.3758]
[1738974598035,0.002,96762.0,96761.0,0.3758]
[1738974603243,0.3628,96762.0,96750.0,0.3608]
[1738974603434,0.2066642,96751.0,96750.0,0.3608]
[1738974603635,0.2066749,96746.0,96745.0,0.24622298]
[1738974606635,0.3608,96749.0,96732.0,0.36216]
[1738974606848,0.2067027,96733.0,96732.0,0.3608]
[1738974607151,0.3042227,96733.0,96732.0,0.3608]
[1738974607745,0.3042227,96733.0,96732.0,0.3618]
[1738974609347,0.3052227,96733.0,96732.0,0.3618]
[1738974609542,0.3062227,96733.0,96732.0,0.3618]
[1738974610652,0.09952,96733.0,96730.0,0.03770328]
[1738974610947,0.09952,96733.0,96709.0,0.3608]
[1738974611145,0.09952,96733.0,96720.0,0.3608]
[1738974611146,0.2067283,96721.0,96720.0,0.3608]
[1738974611346,0.9711283,96721.0,96720.0,0.3608]
[1738974612152,0.9711283,96721.0,96709.0,0.3608]
[1738974612153,0.2067411,96715.0,96709.0,0.3608]
[1738974612347,0.3034211,96715.0,96709.0,0.3608]
[1738974613252,0.09668,96715.0,96709.0,0.3608]
[1738974613442,0.09768,96715.0,96709.0,0.3608]
[1738974613642,0.3054211,96715.0,96714.0,0.001]
[1738974614446,0.002,96715.0,96714.0,0.001]
[1738974614750,0.7644,96721.0,96714.0,0.001]
[1738974614751,0.0966,96721.0,96714.0,0.3618]
[1738974614956,0.0966,96721.0,96720.0,0.3608]
[1738974615252,0.11599377,96721.0,96720.0,0.3608]
[1738974615856,0.11699377,96721.0,96715.0,0.1394]
[1738974616053,0.11699377,96721.0,96714.0,0.001]
[1738974616249,0.2067411,96715.0,96711.0,0.3608]
[1738974616748,0.2067411,96715.0,96709.0,0.2162]
[1738974618153,0.12328544,96720.0,96709.0,0.2162]
[1738974618360,0.002,96715.0,96713.0,0.3608]
[1738974619658,0.002,96715.0,96713.0,0.3628]
[1738974620255,0.001,96715.0,96713.0,0.3608]
[1738974621549,0.002,96715.0,96713.0,0.3608]
[1738974622161,0.2087424,96715.0,96713.0,0.3608]
[1738974622460,0.002,96715.0,96705.0,0.33134]
[1738974622659,0.2067466,96713.0,96705.0,0.33134]
[1738974622857,0.12528544,96715.0,96705.0,0.32394665]
[1738974623057,0.12528544,96715.0,96691.0,0.3608]
[1738974623254,0.2067635,96705.0,96691.0,0.3608]
[1738974623852,0.2067466,96713.0,96705.0,0.001]
[1738974625754,0.12328544,96715.0,96705.0,0.001]
[1738974626055,0.206751,96711.0,96704.0,0.32821452]
[1738974626255,0.001,96705.0,96704.0,0.32821452]
[1738974626858,0.2067529,96710.0,96704.0,0.32821452]
[1738974627163,0.2067553,96709.0,96704.0,0.31058493]
[1738974627665,0.2067553,96709.0,96704.0,0.31158493]
[1738974629763,0.2067553,96709.0,96704.0,0.31058493]
[1738974632765,0.09568,96708.0,96704.0,0.31058493]
[1738974636866,0.09568,96708.0,96700.0,0.1]
[1738974637159,0.2067663,96704.0,96700.0,0.1]
[1738974637565,0.2067685,96703.0,96700.0,0.1]
[1738974637768,0.2067704,96702.0,96700.0,0.1]
[1738974639065,0.2077704,96702.0,96700.0,0.1]
[1738974640568,0.2097704,96702.0,96700.0,0.1]
[1738974640775,0.2117704,96702.0,96700.0,0.1]
[1738974641571,0.2067903,96692.0,96691.0,0.3608]
[1738974641970,0.29287088,96701.0,96675.0,0.0925]
[1738974641971,0.16974054,96701.0,96675.0,0.0925]
[1738974642172,0.12328544,96685.0,96675.0,0.0925]
[1738974642474,0.2068148,96681.0,96675.0,0.0925]
[1738974643975,0.2078148,96681.0,96675.0,0.0925]
[1738974644167,0.001,96681.0,96675.0,0.0925]
[1738974644367,0.2068245,96676.0,96675.0,0.0925]
[1738974644671,0.2068245,96676.0,96674.0,0.66910571]
[1738974644672,0.2068245,96676.0,96674.0,0.36216]
[1738974644876,0.2068245,96676.0,96669.0,0.2613]
[1738974644877,0.2068374,96670.0,96669.0,0.2613]
[1738974645064,0.2068374,96670.0,96669.0,0.0451]
[1738974645266,0.2068481,96665.0,96664.0,0.0446]
[1738974645562,0.3004881,96665.0,96664.0,0.4054]
[1738974647176,0.3014881,96665.0,96664.0,0.4054]
[1738974647572,0.3024881,96665.0,96664.0,0.4054]
[1738974648183,0.3024881,96665.0,96664.0,0.3608]
[1738974650872,0.30244406,96665.0,96664.0,0.34204]
[1738974653073,0.32036866,96665.0,96664.0,0.34204]
[1738974653383,0.30244406,96665.0,96664.0,0.34204]
[1738974654474,0.09564,96665.0,96664.0,0.34204]
[1738974655382,0.002,96665.0,96664.0,0.34204]
[1738974655577,0.09432,96665.0,96664.0,0.34204]
[1738974655779,0.09332,96665.0,96658.0,0.0458]
[1738974655972,0.11108349,96665.0,96661.0,0.3608]
[1738974656481,0.11008349,96665.0,96661.0,0.3608]
[1738974657083,0.11108349,96665.0,96661.0,0.3608]
[1738974657283,0.11208349,96665.0,96661.0,0.3608]
[1738974657674,0.11108349,96665.0,96661.0,0.3608]
[1738974658370,0.09224,96664.0,96661.0,0.3608]
[1738974659484,0.09196,96664.0,96661.0,0.3608]
[1738974659782,0.001,96664.0,96662.0,0.582]
[1738974659983,0.09208,96676.0,96670.0,0.2068369]
[1738974660285,0.09208,96676.0,96675.0,0.3608]
[1738974660477,0.01737321,96679.0,96678.0,0.2068202]
[1738974660787,0.092,96685.0,96678.0,0.3608]
[1738974660979,0.092,96685.0,96679.0,0.0474]
[1738974661176,0.092,96685.0,96681.0,0.206812]
[1738974661378,0.092,96685.0,96679.0,0.0474]
[1738974662981,0.206816,96680.0,96679.0,0.0474]
[1738974663482,0.206816,96680.0,96678.0,0.33699164]
[1738974663689,0.20683,96674.0,96673.0,0.3608]
[1738974664488,0.20683,96674.0,96672.0,0.0001551]
[1738974666193,0.001,96674.0,96672.0,0.0001551]
[1738974666491,0.002,96674.0,96672.0,0.0001551]
[1738974668295,0.0914,96673.0,96672.0,0.0001551]
[1738974668779,0.0914,96673.0,96672.0,0.2069882]
[1738974669195,0.002,96674.0,96672.0,0.2069882]
[1738974669390,0.001,96673.0,96672.0,0.2069882]
[1738974669686,0.001,96673.0,96672.0,0.4231882]
[1738974669896,0.002,96673.0,96672.0,0.4231882]
[1738974670290,0.001,96674.0,96672.0,0.4231882]
[1738974670485,0.002,96674.0,96672.0,0.4231882]
[1738974672096,0.001,96673.0,96672.0,0.4231882]
[1738974672283,0.002,96673.0,96672.0,0.4231882]
[1738974672688,0.15353343,96677.0,96672.0,0.2163551]
[1738974672889,0.15353343,96677.0,96676.0,0.5676245]
[1738974673593,0.15353343,96677.0,96676.0,0.8676245]
[1738974673801,0.20143938,96685.0,96684.0,0.2068074]
[1738974674001,0.20143938,96685.0,96684.0,0.5676074]
[1738974674609,0.09232,96698.0,96684.0,0.577]
[1738974674791,0.09232,96698.0,96691.0,0.2067924]
[1738974674992,0.09232,96698.0,96686.0,0.3608]
[1738974674993,0.15469218,96699.0,96698.0,0.2067775]
[1738974675185,0.94920012,96705.0,96698.0,0.5675775]
[1738974675388,0.94920012,96705.0,96700.0,0.3608]
[1738974676487,0.95720012,96705.0,96700.0,0.3608]
[1738974676693,0.96620012,96705.0,96703.0,0.2067649]
[1738974676992,0.20124012,96705.0,96704.0,0.582]
[1738974677185,0.21494681,96718.0,96704.0,0.582]
[1738974677385,0.2456535,96725.0,96717.0,0.9283368]
[1738974677598,0.2456535,96725.0,96718.0,0.2651]
[1738974677797,0.2456535,96725.0,96718.0,0.3115]
[1738974678004,0.2456535,96725.0,96719.0,0.05]
[1738974678200,0.0179717,96725.0,96719.0,0.05]
[1738974678398,0.0001551,96732.0,96719.0,0.05]
[1738974678697,0.0001551,96732.0,96731.0,0.3608]
[1738974680095,0.0181551,96732.0,96731.0,0.3608]
[1738974681093,0.0181551,96732.0,96718.0,0.2162]
[1738974681393,0.0469,96731.0,96718.0,0.2162]
[1738974681599,0.12328544,96730.0,96718.0,0.2162]
[1738974682001,0.2067145,96728.0,96718.0,0.2162]
[1738974682198,0.2563173,96727.0,96718.0,0.2172]
[1738974682497,0.206723,96724.0,96718.0,0.180828]
[1738974682690,0.206723,96724.0,96718.0,0.179828]
[1738974682892,0.206723,96724.0,96718.0,0.180828]
[1738974683304,0.0496,96727.0,96718.0,0.180828]
[1738974684904,0.0496,96727.0,96718.0,0.179828]
[1738974685101,0.0576,96727.0,96718.0,0.180828]
[1738974685305,0.0576,96727.0,96718.0,0.179828]
[1738974685511,0.009,96724.0,96718.0,0.180828]
[1738974686198,0.0576,96727.0,96718.0,0.180828]
[1738974686405,0.0666,96727.0,96718.0,0.180828]
[1738974687994,0.0496,96727.0,96718.0,0.178828]
[1738974688195,0.017,96724.0,96718.0,0.180828]
[1738974688609,0.009,96724.0,96718.0,0.180828]
[1738974688907,0.0666,96727.0,96718.0,0.180828]
[1738974689303,0.2067195,96726.0,96718.0,0.180828]
[1738974689609,0.2067195,96726.0,96718.0,0.179828]
[1738974689809,0.017,96724.0,96718.0,0.180828]
[1738974690905,0.2067299,96721.0,96718.0,0.180828]
[1738974691113,0.017,96724.0,96718.0,0.180828]
[1738974691409,0.2067326,96719.0,96718.0,0.180828]
[1738974691813,0.5675326,96719.0,96718.0,0.002]
[1738974692106,0.3608,96719.0,96681.0,0.152428]
[1738974692309,0.2067831,96696.0,96681.0,0.152428]
[1738974692505,0.1862,96695.0,96681.0,0.152428]
[1738974693105,0.1862,96695.0,96685.0,0.0001551]
[1738974694910,0.847,96695.0,96665.0,0.42639491]
[1738974695111,0.2068364,96671.0,96665.0,0.42639491]
[1738974695410,0.2068364,96671.0,96666.0,0.24556172]
[1738974695411,0.23664,96670.0,96666.0,0.24556172]
[1738974696706,0.23764,96670.0,96666.0,0.25156172]
[1738974697905,0.23764,96670.0,96666.0,0.25656172]